bitfinex-derivatives/quotes_ETHF0:USTF0_20250624
["timestamp","ask_amount","ask_price","bid_price","bid_amount"]
[1750779917656,0.6853,2431.9,2431.7,0.82206]
[1750779917863,0.82208,2431.8,2431.7,0.82206]
[1750779918365,0.8221,2431.8,2431.7,0.82207]
[1750779918670,0.8221,2431.7,2431.6,1.50711]
[1750779919268,0.8221,2431.7,2431.6,0.685]
[1750779919671,6.64703063,2431.7,2431.6,0.685]
[1750779919860,0.8222,2431.5,2431.4,0.82219]
[1750779920468,0.82218,2431.5,2431.3,2.0341]
[1750779920657,9.7214,2431.9,2431.5,0.82213]
[1750779920658,6.98,2431.8,2431.5,0.82213]
[1750779920863,0.82212,2431.7,2431.6,0.82213]
[1750779921169,0.8221,2431.7,2431.6,0.8221]
[1750779921367,0.82213,2431.6,2431.5,4.02994]
[1750779923064,0.8222,2431.4,2431.3,2.0341]
[1750779923264,0.82227,2431.2,2431.1,4.03007]
[1750779924075,5.82493063,2431.4,2431.0,0.685]
[1750779924076,0.8223,2431.1,2431.0,0.685]
[1750779924266,0.82237,2430.9,2430.8,1.53997]
[1750779925174,0.82237,2430.9,2430.8,0.7176]
[1750779925367,0.82237,2430.9,2430.8,1.54]
[1750779925874,0.82233,2431.1,2431.0,0.8223]
[1750779927069,0.82237,2431.0,2430.9,0.82234]
[1750779927676,0.82237,2430.9,2430.8,2.98077]
[1750779928878,0.82236,2431.0,2430.9,0.82233]
[1750779929576,0.82236,2431.0,2430.8,2.1584]
[1750779929577,0.82237,2430.9,2430.8,0.7176]
[1750779929776,14.85972063,2431.1,2430.7,0.82242]
[1750779929777,0.82245,2430.8,2430.7,0.82242]
[1750779930781,0.82247,2430.7,2430.6,0.82245]
[1750779933285,0.82247,2430.6,2430.5,3.9162]
[1750779933584,0.82254,2430.4,2430.3,1.47755]
[1750779933789,0.8226,2430.3,2430.2,0.8226]
[1750779934685,0.8226,2430.3,2430.2,0.8863515]
[1750779935790,0.8226,2430.3,2430.2,0.0637515]
[1750779936193,0.8226,2430.3,2430.2,0.8863515]
[1750779937284,0.82256,2430.4,2430.3,0.82254]
[1750779938488,0.8224,2430.9,2430.8,0.82238]
[1750779938680,2.05593,2430.9,2430.2,3.2715515]
[1750779938886,2.05593,2430.9,2430.3,0.82255]
[1750779938887,0.82257,2430.4,2430.3,0.82255]
[1750779939196,5.82493063,2430.6,2430.2,0.0637515]
[1750779939197,0.82257,2430.3,2430.2,0.0637515]
[1750779940487,6.64750063,2430.3,2430.2,0.0637515]
[1750779940695,0.8227,2430.0,2429.9,0.82266]
[1750779941892,0.82266,2430.1,2430.0,0.82264]
[1750779943982,0.8227,2430.0,2429.9,0.82268]
[1750779944187,0.8227,2430.0,2429.9,0.82271]
[1750779945092,0.82266,2430.1,2430.0,0.82264]
[1750779945292,0.82271,2430.0,2429.9,0.82269]
[1750779946182,3.2078,2430.4,2429.9,5.26457]
[1750779946489,4.03036,2430.4,2430.3,0.82257]
[1750779946890,4.03036,2430.4,2430.1,2.05659]
[1750779946891,0.82257,2430.3,2430.2,0.8863315]
[1750779947285,0.82257,2430.3,2430.2,0.0637515]
[1750779947491,0.82257,2430.3,2430.2,0.8863515]
[1750779947992,0.82257,2430.3,2430.2,0.0637515]
[1750779948193,6.64750063,2430.3,2430.2,0.0637515]
[1750779948384,7.97660063,2430.3,2430.2,0.0637515]
[1750779949587,0.82279,2429.8,2429.7,0.82275]
[1750779949794,0.82281,2429.7,2429.6,0.82278]
[1750779949996,0.82281,2429.6,2429.5,5.38972]
[1750779950299,0.82284,2429.5,2429.4,1.3122]
[1750779950594,0.82284,2429.5,2429.4,2.13506]
[1750779950997,0.82284,2429.5,2429.4,0.6551]
[1750779951201,0.82291,2429.3,2429.2,3.2078]
[1750779951495,0.82298,2429.2,2429.1,0.82295]
[1750779951799,0.823,2429.1,2429.0,0.82299]
[1750779951983,0.82297,2429.2,2429.1,0.82295]
[1750779952187,0.82293,2429.3,2429.2,0.82292]
[1750779952388,0.6996,2429.9,2429.2,3.2078]
[1750779952595,0.82281,2429.7,2429.6,0.82279]
[1750779952787,7.6756,2429.9,2429.4,0.82284]
[1750779952788,0.82287,2429.5,2429.4,0.82284]
[1750779953094,0.82281,2429.7,2429.6,0.82279]
[1750779953393,0.82281,2429.7,2429.4,0.6936]
[1750779953599,0.82284,2429.6,2429.5,0.82281]
[1750779954293,2.05711,2429.5,2429.0,1.4359]
[1750779954499,0.82297,2429.2,2429.1,0.82295]
[1750779954693,0.82294,2429.3,2429.2,0.82292]
[1750779954891,1.53322,2429.4,2429.3,0.82291]
[1750779955794,0.82295,2429.3,2429.2,0.82292]
[1750779957205,0.82297,2429.2,2429.1,0.82295]
[1750779957704,0.82298,2429.2,2429.1,0.82295]
[1750779957905,0.823,2429.1,2429.0,0.82298]
[1750779958401,6.977,2429.2,2428.9,3.2078]
[1750779958699,5.26527,2429.1,2428.5,3.2078]
[1750779958999,0.82311,2428.8,2428.6,0.82314]
[1750779959202,0.82315,2428.6,2428.5,3.2078]
[1750779959799,2.05781,2428.7,2428.2,5.9032]
[1750779960000,0.82325,2428.3,2428.2,2.6954]
[1750779960296,0.82323,2428.4,2428.3,0.82325]
[1750779960500,0.82324,2428.4,2428.3,0.82323]
[1750779960893,3.45076,2428.7,2428.2,5.9032]
[1750779961296,0.82321,2428.5,2428.4,0.8232]
[1750779961493,0.82321,2428.4,2428.3,2.15132]
[1750779961796,0.82321,2428.4,2428.2,4.5348]
[1750779961797,0.82325,2428.3,2428.2,4.5348]
[1750779962098,0.82335,2428.0,2427.9,0.82337]
[1750779962291,0.82342,2427.9,2427.8,0.82339]
[1750779962490,12.80393063,2428.3,2427.9,0.82335]
[1750779962491,0.82338,2428.0,2427.9,0.82335]
[1750779962893,6.979,2428.3,2427.8,3.38663]
[1750779963112,7.80231,2428.2,2428.1,0.8233]
[1750779963394,3.48379,2429.1,2428.1,5.82493063]
[1750779963596,3.48379,2429.1,2428.0,6.979]
[1750779963597,0.82325,2428.3,2428.2,0.6545]
[1750779963800,0.82311,2428.8,2428.7,0.82311]
[1750779964100,1.4263,2429.1,2428.7,0.82311]
[1750779964101,7.80201,2429.1,2429.0,0.82301]
[1750779964405,2.05709,2429.6,2429.4,0.82285]
[1750779964406,6.979,2429.6,2429.4,0.82285]
[1750779964597,7.80183,2429.6,2429.5,0.82284]
[1750779965595,7.80183,2429.6,2429.5,1.4325]
[1750779965995,7.80183,2429.6,2429.5,2.25534]
[1750779966292,7.80183,2429.6,2429.5,1.4325]
[1750779966492,0.82283,2429.6,2429.5,1.4325]
[1750779966897,0.82283,2429.6,2429.5,2.25534]
[1750779967703,0.82283,2429.6,2429.5,1.4325]
[1750779968302,12.24375,2429.7,2429.3,0.6823]
[1750779968601,0.82287,2429.4,2429.3,1.50519]
[1750779969500,0.82287,2429.4,2429.3,0.6823]
[1750779971103,0.82287,2429.4,2429.3,1.50521]
[1750779971301,0.82287,2429.5,2429.4,0.82285]
[1750779971500,0.82287,2429.5,2429.4,2.17165]
[1750779972001,0.82284,2429.6,2429.5,0.82282]
[1750779972200,0.82278,2429.8,2429.7,0.82275]
[1750779973401,5.97679,2430.0,2429.9,0.82271]
[1750779973402,0.82271,2430.0,2429.9,0.82271]
[1750779974201,0.82271,2430.0,2429.9,1.3766]
[1750779974607,0.82271,2429.9,2429.8,1.3435]
[1750779974802,0.82271,2429.9,2429.8,2.16624]
[1750779975400,0.82271,2429.9,2429.8,3.54284]
[1750779976304,0.8227,2430.0,2429.9,0.82267]
[1750779976507,0.82258,2430.4,2430.3,0.82257]
[1750779976901,0.82256,2430.4,2430.3,0.82254]
[1750779977308,0.82253,2430.5,2430.4,0.82251]
[1750779977509,0.82257,2430.4,2430.3,0.82255]
[1750779977710,14.86203063,2430.7,2430.4,0.82251]
[1750779978010,0.82256,2430.4,2430.3,0.82255]
[1750779978707,0.82256,2430.4,2429.9,0.82268]
[1750779978708,0.82271,2430.0,2429.9,0.82268]
[1750779980410,0.82271,2430.0,2429.9,0.0637515]
[1750779980805,0.82277,2429.7,2429.6,0.82278]
[1750779981004,0.82281,2429.6,2429.5,4.03062]
[1750779981613,13.46233063,2429.8,2429.5,3.2078]
[1750779981906,14.28509063,2429.8,2429.7,0.82277]
[1750779982109,0.6574,2429.8,2429.7,0.82277]
[1750779982501,11.01048,2430.0,2429.9,0.8864615]
[1750779983217,7.80262,2430.2,2430.1,0.8226]
[1750779983710,7.8026,2430.2,2430.1,0.82264]
[1750779984102,0.8226,2430.2,2430.1,0.82264]
[1750779990213,0.8226,2430.2,2430.1,4.03044]
[1750779990413,14.28393063,2430.3,2430.2,0.8226]
[1750779990714,14.28393063,2430.3,2430.1,3.2078]
[1750779990715,0.8226,2430.2,2430.1,4.03041]
[1750779990910,0.82267,2430.1,2429.9,1.3813515]
[1750779991117,0.82267,2430.1,2430.0,0.82264]
[1750779991506,0.82267,2430.0,2429.9,0.0637515]
[1750779991709,0.82267,2430.0,2429.5,3.41844]
[1750779991710,0.82281,2429.7,2429.6,0.82277]
[1750779993319,0.82287,2429.5,2429.4,0.82283]
[1750779993513,6.64776063,2429.6,2429.5,0.8228]
[1750779994023,0.82287,2429.5,2429.4,0.82285]
[1750779994517,6.64775063,2429.6,2429.5,0.82284]
[1750779994721,0.82281,2429.7,2429.6,0.82278]
[1750779995711,0.82281,2429.6,2429.5,0.8865715]
[1750779995912,0.82281,2429.6,2429.5,0.0637515]
[1750779996113,0.82291,2429.3,2429.2,4.03073]
[1750779996409,0.82291,2429.3,2429.0,2.19678]
[1750779996410,0.82298,2429.1,2429.0,2.19678]
[1750779996611,0.82304,2429.0,2428.9,0.82301]
[1750779996814,6.64797063,2429.0,2428.9,0.82301]
[1750779997011,5.82493063,2429.0,2428.9,0.82301]
[1750779997217,0.82299,2429.1,2429.0,0.82301]
[1750779997815,6.98,2429.4,2429.3,0.82291]
[1750779998021,6.98,2429.6,2429.5,0.82284]
[1750779998224,7.80281,2429.6,2429.5,4.03064]
[1750779998414,25.936,2429.7,2429.6,0.82277]
[1750779998415,0.8228,2429.7,2429.6,0.82277]
[1750779998616,7.7908,2429.7,2429.6,0.82277]
[1750779999623,6.968,2429.9,2429.8,0.82274]
[1750780000013,6.968,2429.9,2429.8,5.46644]
[1750780000415,7.79071,2429.9,2429.8,5.46644]
[1750780000624,7.79071,2429.9,2429.8,4.03054]
[1750780001726,6.968,2429.9,2429.8,4.03054]
[1750780002026,6.968,2429.9,2429.5,3.5567215]
[1750780002027,0.82281,2429.6,2429.5,0.8865615]
[1750780002227,6.64774063,2429.6,2429.5,0.0637515]
[1750780002527,0.82297,2429.2,2429.1,0.82294]
[1750780003128,0.82296,2429.2,2429.1,0.82293]
[1750780006125,2.05746,2429.1,2428.5,3.2078]
[1750780006320,0.82315,2428.7,2428.6,0.82313]
[1750780006924,0.82315,2428.6,2428.5,4.69656]
[1750780007226,0.82313,2428.7,2428.6,0.82312]
[1750780007728,5.82493063,2428.9,2428.5,3.8734]
[1750780007729,0.82315,2428.6,2428.5,4.69656]
[1750780008027,0.8231,2428.8,2428.7,0.82309]
[1750780008428,7.79206,2428.9,2428.8,0.82308]
[1750780008925,10.99976,2429.2,2429.1,0.82298]
[1750780009318,3.2078,2429.2,2428.8,5.26548]
[1750780009531,10.99976,2429.2,2429.1,0.82298]
[1750780009717,0.82301,2429.1,2429.0,0.82299]
[1750780010422,16.00173063,2429.2,2428.6,1.3516]
[1750780010622,0.82308,2428.9,2428.8,0.82306]
[1750780010822,0.82303,2429.0,2428.9,0.82301]
[1750780012624,2.05745,2429.1,2428.6,1.3516]
[1750780012819,0.82315,2428.6,2428.5,3.8734]
[1750780013326,0.82315,2428.6,2428.5,4.69658]
[1750780013633,0.82325,2428.3,2428.2,0.82326]
[1750780014032,2.05814,2428.3,2428.0,1.3816]
[1750780014228,0.82332,2428.1,2428.0,1.3816]
[1750780014431,0.82332,2428.1,2428.0,0.6732]
[1750780014929,2.05822,2428.2,2427.8,0.8234]
[1750780015128,0.82341,2427.9,2427.7,0.7035]
[1750780015332,2.05822,2428.2,2427.7,0.7035]
[1750780015333,0.82342,2427.8,2427.7,0.7035]
[1750780016034,2.05849,2427.9,2427.5,0.6732]
[1750780016230,0.82348,2427.6,2427.5,1.49671]
[1750780016428,0.82343,2427.8,2427.7,0.82343]
[1750780016729,0.82348,2427.6,2427.5,0.6732]
[1750780017130,0.82348,2427.6,2427.5,1.49672]
[1750780017329,0.82348,2427.7,2427.6,0.82346]
[1750780017834,0.82348,2427.6,2427.5,1.4967]
[1750780018530,30.04448,2427.9,2427.3,2.0425]
[1750780018531,0.82355,2427.5,2427.3,2.0425]
[1750780018743,0.82355,2427.4,2427.3,0.7035]
[1750780018932,0.82359,2427.3,2427.2,4.03141]
[1750780019533,0.82362,2427.2,2427.1,1.50032]
[1750780019734,0.82358,2427.4,2427.3,0.82359]
[1750780020329,8.3942,2427.6,2427.2,0.8236]
[1750780020330,0.82362,2427.3,2427.2,0.8236]
[1750780021330,0.82358,2427.4,2427.3,0.82356]
[1750780022037,0.82362,2427.2,2427.1,2.83413]
[1750780022235,0.82362,2427.2,2427.1,1.50033]
[1750780022535,0.82362,2427.2,2427.0,1.48367]
[1750780022536,0.82365,2427.1,2427.0,1.48367]
[1750780022937,7.79565,2427.2,2427.1,0.82365]
[1750780023629,0.82365,2427.1,2427.0,1.48366]
[1750780024434,7.79565,2427.2,2427.1,0.82365]
[1750780024935,0.82365,2427.1,2427.0,0.82367]
[1750780025137,0.82365,2427.1,2427.0,0.8874215]
[1750780026639,7.79565,2427.2,2427.1,0.82365]
[1750780026934,6.973,2428.0,2427.9,0.82338]
[1750780027126,0.82339,2428.0,2427.9,0.82336]
[1750780027836,0.82341,2427.9,2427.8,0.82339]
[1750780028739,0.82337,2428.0,2427.9,0.82335]
[1750780030439,0.82338,2427.9,2427.8,2.16349]
[1750780030639,0.82338,2427.9,2427.8,1.3401]
[1750780030936,0.82342,2427.8,2427.7,1.50472]
[1750780031232,59.6651,2428.1,2427.7,0.6813]
[1750780031233,50.6338,2428.1,2427.7,0.6813]
[1750780031439,33.73537,2428.0,2427.9,0.82335]
[1750780031639,33.73437,2428.0,2427.9,0.82335]
[1750780031932,0.82323,2428.4,2428.3,0.82321]
[1750780032127,0.82317,2428.6,2428.5,0.82314]
[1750780032328,0.82318,2428.6,2428.4,0.6551]
[1750780032635,0.82311,2428.8,2428.7,0.8231]
[1750780032935,34.96863,2428.9,2428.4,1.9612]
[1750780033140,34.96863,2428.9,2428.2,5.26596]
[1750780033141,11.09063063,2428.6,2428.2,4.03106]
[1750780033339,7.79021,2428.5,2428.4,0.82321]
[1750780033540,0.82321,2428.4,2428.3,2.12933]
[1750780034346,0.82325,2428.3,2428.2,3.2078]
[1750780035037,0.82325,2428.3,2428.2,0.82326]
[1750780035438,0.82328,2428.2,2428.1,1.49569]
[1750780035637,0.82328,2428.2,2428.1,0.6724]
[1750780036033,0.82328,2428.2,2428.1,1.49572]
[1750780036439,0.82328,2428.2,2428.1,0.6724]
[1750780036948,0.82332,2428.1,2428.0,0.667]
[1750780037433,0.82332,2428.1,2427.9,5.42828]
[1750780037434,0.82335,2428.0,2427.9,3.2078]
[1750780037635,0.82335,2428.0,2427.6,0.6535]
[1750780037636,0.82345,2427.7,2427.6,3.8613]
[1750780037838,0.82345,2427.7,2427.6,0.6535]
[1750780038047,0.82355,2427.5,2427.2,3.2078]
[1750780038238,0.82355,2427.5,2427.4,0.82352]
[1750780038853,6.966,2427.7,2427.5,0.82349]
[1750780039064,6.966,2427.7,2427.6,0.82348]
[1750780039065,7.78946,2427.7,2427.6,0.82348]
[1750780039558,7.78946,2427.7,2427.5,4.0313]
[1750780039559,0.82348,2427.6,2427.5,4.0313]
[1750780040759,0.82348,2427.6,2427.5,3.2078]
[1750780041057,0.82348,2427.6,2427.5,4.03132]
[1750780041359,0.82348,2427.6,2427.5,4.0950715]
[1750780042553,0.82348,2427.6,2427.5,3.2715515]
[1750780042859,0.82348,2427.6,2427.5,4.0950715]
[1750780043063,7.78948,2427.7,2427.6,0.82348]
[1750780043256,7.78948,2427.7,2427.6,1.3875]
[1750780043456,0.82348,2427.6,2427.5,3.2715515]
[1750780043856,0.82348,2427.6,2427.5,0.0637515]
[1750780044065,0.82362,2427.2,2427.1,1.3703]
[1750780044368,0.82362,2427.2,2427.1,1.47715]
[1750780044862,0.82348,2427.7,2427.6,0.82345]
[1750780045459,12.88362063,2427.7,2427.3,3.2078]
[1750780045659,0.82363,2427.3,2427.2,0.82359]
[1750780045856,0.82363,2427.3,2426.9,5.95049]
[1750780045857,0.82364,2427.2,2427.1,0.82363]
[1750780046459,0.82365,2427.1,2427.0,1.335]
[1750780046667,0.82369,2427.0,2426.9,4.71491]
[1750780046957,0.82369,2427.0,2426.9,3.8912]
[1750780048265,0.82369,2427.0,2426.9,4.71492]
[1750780048458,0.82369,2427.0,2426.9,3.8912]
[1750780049868,0.82362,2427.1,2427.0,0.82359]
[1750780050071,0.82362,2427.1,2427.0,1.4225]
[1750780050363,0.82358,2427.2,2427.1,0.82356]
[1750780050668,0.82359,2427.1,2427.0,2.24609]
[1750780051169,0.82353,2427.3,2427.2,0.82351]
[1750780051373,0.82353,2427.3,2427.2,4.03131]
[1750780051560,0.82346,2427.5,2427.4,0.82345]
[1750780052159,0.6566,2427.9,2427.4,6.3498]
[1750780052364,0.82337,2427.8,2427.7,0.82337]
[1750780052668,0.82334,2427.9,2427.8,0.82333]
[1750780052868,0.8233,2428.0,2427.9,0.82328]
[1750780053471,7.79127,2428.1,2428.0,0.82327]
[1750780054469,7.79127,2428.1,2428.0,0.82328]
[1750780054971,0.82327,2428.1,2428.0,0.82328]
[1750780055365,6.968,2428.1,2428.0,0.82328]
[1750780055566,0.82324,2428.2,2428.1,0.82323]
[1750780055968,7.79124,2428.2,2428.1,0.82323]
[1750780056163,0.82325,2428.1,2428.0,0.8870115]
[1750780056571,0.82325,2428.1,2428.0,3.2715515]
[1750780056767,6.968,2428.6,2428.1,2.05812]
[1750780056973,0.82318,2428.3,2428.2,2.94569]
[1750780057376,0.82316,2428.4,2428.3,0.82315]
[1750780058371,0.82323,2428.2,2428.1,0.82321]
[1750780058575,0.82323,2428.2,2428.0,3.2715515]
[1750780058576,0.82325,2428.1,2428.0,4.0948115]
[1750780059276,0.82324,2428.2,2428.1,0.82321]
[1750780059578,0.82321,2428.3,2428.2,0.82319]
[1750780060375,0.82314,2428.5,2428.4,0.82311]
[1750780061177,0.8231,2428.6,2428.5,0.82308]
[1750780061367,0.82311,2428.5,2428.4,2.82632]
[1750780061768,0.82307,2428.7,2428.6,0.82304]
[1750780062270,7.6184,2428.9,2428.6,3.2078]
[1750780062574,7.787,2428.9,2428.8,0.82301]
[1750780062970,48.142,2429.2,2428.7,1.3978]
[1750780063176,0.82294,2429.1,2429.0,0.82292]
[1750780063478,0.82287,2429.3,2429.2,0.82286]
[1750780064378,27.2397,2429.6,2429.5,0.82275]
[1750780064379,0.82276,2429.6,2429.5,0.82275]
[1750780064773,4.03049,2429.8,2429.7,0.8227]
[1750780065070,3.2078,2429.8,2429.7,0.8227]
[1750780065472,11.08899063,2430.3,2429.8,0.82264]
[1750780065674,5.82493063,2430.0,2429.5,4.5597]
[1750780065977,0.82268,2429.8,2429.7,0.82268]
[1750780066178,5.82493063,2429.9,2429.7,0.82268]
[1750780066379,0.82267,2429.8,2429.7,0.82268]
[1750780066581,0.8227,2429.7,2429.6,0.82271]
[1750780066877,13.44753063,2430.1,2429.5,4.5597]
[1750780067077,0.82262,2430.0,2429.9,0.82264]
[1750780067274,5.59704262,2430.3,2429.8,3.2078]
[1750780067275,3.2078,2430.3,2429.8,3.2078]
[1750780067481,3.2078,2430.3,2430.2,0.82253]
[1750780068377,0.82243,2430.6,2430.2,3.2078]
[1750780068589,0.8224,2430.6,2430.5,0.82241]
[1750780068886,6.962,2430.8,2430.7,0.82237]
[1750780069088,1.15388342,2430.9,2430.8,0.82233]
[1750780069580,1.15388342,2430.9,2430.6,0.6641]
[1750780069581,1.15389342,2430.9,2430.7,0.82235]
[1750780069780,0.82233,2430.8,2430.7,0.82235]
[1750780069983,0.82237,2430.7,2430.6,0.6641]
[1750780070180,0.33156342,2430.9,2430.8,0.82233]
[1750780070680,1.15386342,2430.9,2430.8,0.82233]
[1750780070885,0.8223,2430.9,2430.8,0.82233]
[1750780071074,12.22525,2431.3,2430.8,3.2078]
[1750780071075,0.8223,2431.0,2430.8,3.2078]
[1750780071485,0.8223,2430.9,2430.8,3.2078]
[1750780071986,0.8223,2430.9,2430.8,4.03013]
[1750780072179,0.8223,2430.9,2430.8,3.2078]
[1750780073291,0.8224,2430.6,2430.5,0.0637515]
[1750780073486,6.64733063,2430.6,2430.5,0.0637515]
[1750780073978,7.18643063,2430.6,2429.9,5.2951]
[1750780074179,0.8226,2430.0,2429.9,3.8787]
[1750780074380,4.03029,2430.4,2430.3,0.8225]
[1750780074686,4.03029,2430.4,2429.9,5.93528]
[1750780074687,3.2078,2430.4,2429.9,7.30968]
[1750780074985,3.2078,2430.4,2430.2,0.82251]
[1750780074986,0.82252,2430.3,2430.2,0.82251]
[1750780075384,3.2078,2430.4,2430.3,0.8225]
[1750780075586,4.03027,2430.4,2430.3,0.8225]
[1750780076188,3.2078,2430.4,2430.3,0.8225]
[1750780076383,3.2078,2430.8,2430.3,5.0]
[1750780076588,4.03013,2430.8,2430.7,0.82237]
[1750780076794,3.2078,2430.8,2430.7,0.82237]
[1750780076981,0.82225,2431.1,2430.9,0.82227]
[1750780077182,0.82226,2431.0,2430.9,0.82227]
[1750780077694,0.82225,2431.1,2430.9,0.82227]
[1750780077886,0.82226,2431.0,2430.9,0.82227]
[1750780078090,0.82225,2431.1,2431.0,0.82224]
[1750780078686,10.8426,2431.3,2430.9,2.05574]
[1750780078992,11.6648,2431.3,2431.2,0.8222]
[1750780079193,0.82223,2431.2,2431.1,0.82221]
[1750780079490,11.66477,2431.3,2431.2,0.8222]
[1750780079884,10.98897,2431.3,2431.2,0.8222]
[1750780080089,4.02996,2431.3,2431.2,0.8222]
[1750780080383,0.82223,2431.2,2431.1,0.8222]
[1750780080690,3.2078,2431.3,2431.0,0.82224]
[1750780080691,0.82227,2431.1,2431.0,0.82224]
[1750780080893,0.82229,2431.0,2430.9,0.82228]
[1750780081183,0.8224,2430.6,2430.5,0.0637515]
[1750780081389,0.82255,2430.3,2430.2,0.82252]
[1750780081784,3.4032,2430.5,2429.9,5.26439]
[1750780081983,3.2078,2430.6,2430.1,2.05643]
[1750780082183,0.82236,2430.8,2430.7,0.82234]
[1750780082488,4.75133,2430.9,2430.8,0.82233]
[1750780082678,3.929,2430.9,2430.8,0.82233]
[1750780082882,4.0301,2430.9,2430.8,0.82233]
[1750780083894,3.2078,2430.9,2430.8,0.82233]
[1750780084091,0.82228,2431.0,2430.9,0.8223]
[1750780084285,26.73226,2431.1,2431.0,0.82226]
[1750780084685,0.8223,2430.9,2430.8,0.82232]
[1750780085394,0.82236,2430.8,2430.7,0.82234]
[1750780086086,6.60938,2431.0,2430.6,1.48308]
[1750780086087,0.82237,2430.7,2430.6,1.48308]
[1750780086293,0.82239,2430.7,2430.6,0.82236]
[1750780086486,3.2078,2431.0,2430.4,2.05617]
[1750780086695,0.7212,2431.2,2431.1,0.82223]
[1750780086894,0.8222,2431.2,2431.1,0.82223]
[1750780087797,0.82222,2431.2,2431.1,0.8222]
[1750780087991,3.2078,2431.3,2431.2,0.8222]
[1750780088587,0.82214,2431.4,2431.3,0.82216]
[1750780088893,0.82212,2431.5,2431.4,0.82212]
[1750780089297,0.82212,2431.5,2431.1,4.83207]
[1750780089298,0.82217,2431.3,2431.2,0.82217]
[1750780089594,0.82222,2431.2,2431.1,0.8222]
[1750780089896,3.2078,2431.3,2431.2,0.8222]
[1750780091590,0.82222,2431.2,2431.1,0.8222]
[1750780091785,0.8223,2431.0,2430.9,0.82227]
[1750780092300,0.82226,2431.1,2431.0,0.82223]
[1750780092993,0.6941,2431.5,2431.4,0.82213]
[1750780093195,1.51619,2431.5,2431.4,0.82213]
[1750780093893,4.02989,2431.6,2431.5,0.82209]
[1750780094195,3.2078,2431.6,2431.5,0.82209]
[1750780094390,4.02986,2431.6,2431.5,0.82209]
[1750780094792,3.2078,2431.6,2431.5,0.82209]
[1750780095897,0.6575,2431.9,2431.8,0.82199]
[1750780096991,0.82191,2432.1,2431.7,2.05506]
[1750780097293,0.82191,2432.1,2432.0,0.82189]
[1750780097498,0.82188,2432.2,2432.1,0.82186]
[1750780098094,0.8218,2432.5,2432.4,0.82177]
[1750780098299,0.82176,2432.5,2432.4,0.82179]
[1750780098701,3.9184,2432.6,2432.5,0.82176]
[1750780098702,4.74015,2432.6,2432.5,0.82176]
[1750780099499,4.02955,2432.6,2432.5,0.82176]
[1750780100102,0.82179,2432.5,2432.4,0.82176]
[1750780100307,4.02953,2432.6,2432.5,0.82176]
[1750780100602,3.2078,2432.6,2432.5,0.82176]
[1750780101003,0.82169,2432.7,2432.6,0.82169]
[1750780101501,0.82168,2432.8,2432.7,0.82166]
[1750780101706,0.82157,2433.1,2433.0,0.82156]
[1750780101903,0.82162,2432.9,2432.8,0.82164]
[1750780102098,0.82161,2433.0,2432.9,0.8216]
[1750780102306,0.82161,2433.0,2432.9,0.82159]
[1750780102499,3.2078,2433.2,2432.7,2.05423]
[1750780102700,3.2078,2433.2,2433.1,0.82155]
[1750780103096,6.951,2433.5,2433.0,7.95663]
[1750780103305,3.8639,2433.7,2433.3,0.82146]
[1750780103503,0.82145,2433.4,2433.3,0.82146]
[1750780103804,2.05372,2433.3,2432.5,2.05438]
[1750780104107,5.26173,2433.1,2432.7,0.82169]
[1750780104305,0.82164,2432.9,2432.8,0.82165]
[1750780104503,3.2078,2433.1,2433.0,0.82159]
[1750780104811,3.2078,2433.7,2433.3,0.82146]
[1750780105003,5.26146,2433.4,2432.9,0.6654]
[1750780105303,3.2078,2433.5,2432.7,4.5359]
[1750780105508,1.3379,2433.7,2433.4,3.2078]
[1750780105805,39.61409977,2433.9,2433.8,0.82132]
[1750780105806,16.54498475,2433.9,2433.8,0.82132]
[1750780106105,0.23988475,2433.9,2433.8,0.82132]
[1750780107202,3.2078,2434.4,2434.3,0.82115]
[1750780107511,7.77,2434.8,2434.7,0.82101]
[1750780108109,6.949,2434.8,2434.2,2.0073]
[1750780108408,0.82105,2434.6,2434.2,2.0073]
[1750780108705,0.82103,2434.7,2434.6,0.82104]
[1750780108907,0.82107,2434.6,2434.5,0.82107]
[1750780109098,0.82102,2434.7,2434.6,0.82103]
[1750780109405,7.77,2434.8,2434.3,3.39918]
[1750780109712,7.77,2434.8,2434.6,0.82102]
[1750780109905,6.949,2434.8,2434.5,0.82107]
[1750780110210,0.82109,2434.5,2434.4,0.8211]
[1750780111204,0.82105,2434.7,2434.3,1.3463]
[1750780111407,3.2078,2435.3,2434.6,3.2078]
[1750780111707,6.79724501,2435.1,2434.2,0.661]
[1750780111908,8.99812,2435.2,2434.1,3.2078]
[1750780111909,3.2078,2434.7,2434.1,3.2078]
[1750780112106,2.05271,2434.5,2433.7,5.1954]
[1750780112308,0.82122,2434.1,2433.9,1.52636]
[1750780112812,0.82108,2434.5,2434.0,3.2078]
[1750780113013,10.8354,2434.6,2434.4,0.8211]
[1750780113215,4.71046,2434.6,2434.4,0.82109]
[1750780113416,0.82112,2434.4,2434.3,0.82113]
[1750780113915,0.8212,2434.2,2434.1,0.8212]
[1750780114617,4.7742315,2434.6,2434.1,2.05302]
[1750780114920,4.7742315,2434.6,2434.0,3.2078]
[1750780114921,0.82109,2434.5,2434.4,0.82109]
[1750780115217,1.5664115,2434.6,2434.5,0.82108]
[1750780115415,0.0637515,2434.6,2434.5,0.82108]
[1750780115811,0.0637515,2434.6,2434.3,0.667]
[1750780116007,0.82109,2434.5,2434.4,0.82108]
[1750780116309,0.82109,2434.5,2434.0,3.2078]